Workbook

Sheet Notes Balance
A1: TOTAL NOTE BALANCES
B2: Total Notes | C2: Class A1 Notes | D2: Class A2 Notes | E2: Class B Notes | F2: Class C Notes
A3: Initial Invested Amount | B3: =SUM(C3:F3) -> 423450000 | C3: 115000000 | D3: 286850000 | E3: 11250000 | F3: 10350000
A4: Invested Amount as at Previous Payment Date: 16 August 2018 | B4: =SUM(C4:F4) -> 423450000 | C4: 115000000 | D4: 286850000 | E4: 11250000 | F4: 10350000
A5: Stated Amount as at Previous Payment Date: 16 August 2018 | B5: 423450000 | C5: 115000000 | D5: 286850000 | E5: 11250000 | F5: 10350000
A6: Principal Payments to Noteholders on Payment Date | B6: 39614786.81 | C6: 39614786.81 | D6: 0 | E6: 0 | F6: 0
A7: Gross Aggregate Charge-Offs | B7: 0 | C7: 0 | D7: 0 | E7: 0 | F7: 0
A8: Gross Aggregate Reinstatements of charge-offs | B8: 0 | C8: 0 | D8: 0 | E8: 0 | F8: 0
A9: Aggregate Charge-Offs for this Collection Period | B9: 0 | C9: 0 | D9: 0 | E9: 0 | F9: 0
A10: Reinstatements relating to Charge-offs that have occurred this Collection Period | B10: 0 | C10: 0 | D10: 0 | E10: 0 | F10: 0
A11: Aggregate Carry Over Charge-offs not previously reinstated | B11: 0 | C11: 0 | D11: 0 | E11: 0 | F11: 0
A12: Reinstatements of Carry Over Charge-offs not previously reinstated | B12: 0 | C12: 0 | D12: 0 | E12: 0 | F12: 0
A13: Aggregate Charge-Offs not reinstated and to be carried over to next period | B13: 0 | C13: 0 | D13: 0 | E13: 0 | F13: 0
A14: Invested Amount as at Payment Date: 16 November 2018 | B14: 383835213.2 | C14: 75385213.19 | D14: 286850000 | E14: 11250000 | F14: 10350000
A15: Stated Amount as at Payment Date: 16 November 2018 | B15: 383835213.2 | C15: 75385213.19 | D15: 286850000 | E15: 11250000 | F15: 10350000
A16: Bond Factor at Payment Date: 16 November 2018 | C16: 0.655523593 | D16: 1 | E16: 1 | F16: 1
A17: Coupon Margin | C17: 0.0073 | D17: 0.0108 | E17: 0.017 | F17: 0.0225
A18: Coupon Rate (3 month BBSW + margin) | C18: 0.02685 | D18: 0.03035 | E18: 0.03655 | F18: 0.04205
A19: Days in Coupon Period | C19: 92 | D19: 92 | E19: 92 | F19: 92
A20: Coupon Entitlement to be paid out on the current Payment Date: 16 November 2018 | C20: 778282.19 | D20: 2194363.21 | E20: 103641.78 | F20: 109698.66
A23: TOTAL NOTE BALANCES
B24: Total Notes | C24: Class A1 Notes | D24: Class A2 Notes | E24: Class B Notes | F24: Class C Notes
A25: Initial Invested Amount | B25: =SUM(C25:F25) -> 423450000 | C25: 115000000 | D25: 286850000 | E25: 11250000 | F25: 10350000
A26: Invested Amount as at Previous Payment Date: 16 November 2018 | B26: =SUM(C26:F26) -> 383835213.2 | C26: 75385213.19 | D26: 286850000 | E26: 11250000 | F26: 10350000
A27: Stated Amount as at Previous Payment Date: 16 November 2018 | B27: 383835213.2 | C27: 75385213.19 | D27: 286850000 | E27: 11250000 | F27: 10350000
A28: Principal Payments to Noteholders on Payment Date | B28: 27133674.77 | C28: 27133674.77 | D28: 0 | E28: 0 | F28: 0
A29: Gross Aggregate Charge-Offs | B29: 0 | C29: 0 | D29: 0 | E29: 0 | F29: 0
A30: Gross Aggregate Reinstatements of charge-offs | B30: 0 | C30: 0 | D30: 0 | E30: 0 | F30: 0
A31: Aggregate Charge-Offs for this Collection Period | B31: 0 | C31: 0 | D31: 0 | E31: 0 | F31: 0
A32: Reinstatements relating to Charge-offs that have occurred this Collection Period | B32: 0 | C32: 0 | D32: 0 | E32: 0 | F32: 0
A33: Aggregate Carry Over Charge-offs not previously reinstated | B33: 0 | C33: 0 | D33: 0 | E33: 0 | F33: 0
A34: Reinstatements of Carry Over Charge-offs not previously reinstated | B34: 0 | C34: 0 | D34: 0 | E34: 0 | F34: 0
A35: Aggregate Charge-Offs not reinstated and to be carried over to next period | B35: 0 | C35: 0 | D35: 0 | E35: 0 | F35: 0
A36: Invested Amount as at Payment Date: 18 February 2019 | B36: 356701538.4 | C36: 48251538.42 | D36: 286850000 | E36: 11250000 | F36: 10350000
A37: Stated Amount as at Payment Date: 18 February 2019 | B37: 356701538.4 | C37: 48251538.42 | D37: 286850000 | E37: 11250000 | F37: 10350000
A38: Bond Factor at Payment Date: 18 February 2019 | C38: 0.419578595 | D38: 1 | E38: 1 | F38: 1
A39: Coupon Margin | C39: 0.0073 | D39: 0.0108 | E39: 0.017 | F39: 0.0225
A40: Coupon Rate (3 month BBSW + margin) | C40: 0.02671 | D40: 0.03021 | E40: 0.03641 | F40: 0.04191
A41: Days in Coupon Period | C41: 94 | D41: 94 | E41: 94 | F41: 94
A42: Coupon Entitlement to be paid out on the current Payment Date: 18 February 2019 | C42: 518555.26 | D42: 2231724.44 | E42: 105489.25 | F42: 111710.24
A45: TOTAL NOTE BALANCES
B46: Total Notes | C46: Class A1 Notes | D46: Class A2 Notes | E46: Class B Notes | F46: Class C Notes
A47: Initial Invested Amount | B47: =SUM(C47:F47) -> 423450000 | C47: 115000000 | D47: 286850000 | E47: 11250000 | F47: 10350000
A48: Invested Amount as at Previous Payment Date: 18 February 2019 | B48: =SUM(C48:F48) -> 356701538.4 | C48: 48251538.42 | D48: 286850000 | E48: 11250000 | F48: 10350000
A49: Stated Amount as at Previous Payment Date: 18 February 2019 | B49: =SUM(C49:F49) -> 356701538.4 | C49: 48251538.42 | D49: 286850000 | E49: 11250000 | F49: 10350000
A50: Principal Payments to Noteholders on Payment Date | B50: =SUM(C50:F50) -> 60199851.23 | C50: 48251538.42 | D50: 11948312.81 | E50: 0 | F50: 0
A51: Gross Aggregate Charge-Offs | B51: =SUM(B51:F51) -> 0 | C51: 0 | D51: 0 | E51: 0 | F51: 0
A52: Gross Aggregate Reinstatements of charge-offs | B52: =SUM(C52:F52) -> 0 | C52: 0 | D52: 0 | E52: 0 | F52: 0
A53: Aggregate Charge-Offs for this Collection Period | B53: =SUM(C53:F53) -> 0 | C53: 0 | D53: 0 | E53: 0 | F53: 0
A54: Reinstatements relating to Charge-offs that have occurred this Collection Period | B54: =SUM(C54:F54) -> 0 | C54: 0 | D54: 0 | E54: 0 | F54: 0
A55: Aggregate Carry Over Charge-offs not previously reinstated | B55: 0 | C55: 0 | D55: 0 | E55: 0 | F55: 0
A56: Reinstatements of Carry Over Charge-offs not previously reinstated | B56: 0 | C56: 0 | D56: 0 | E56: 0 | F56: 0
A57: Aggregate Charge-Offs not reinstated and to be carried over to next period | B57: =SUM(C57:F57) -> 0 | C57: 0 | D57: 0 | E57: 0 | F57: 0
A58: Invested Amount as at Payment Date: 16 May 2019 | B58: =SUM(C58:F58) -> 296501687.2 | C58: 0 | D58: 274901687.2 | E58: 11250000 | F58: 10350000
A59: Stated Amount as at Payment Date: 16 May 2019 | B59: =SUM(C59:F59) -> 296501687.2 | C59: 0 | D59: 274901687.2 | E59: 11250000 | F59: 10350000
A60: Bond Factor at Payment Date: 16 May 2019 | C60: 0 | D60: 0.9583464779 | E60: 1 | F60: 1
A61: Coupon Margin | C61: 0.0073 | D61: 0.0108 | E61: 0.017 | F61: 0.0225
A62: Coupon Rate (3 month BBSW + margin) | C62: 0.0268 | D62: 0.0303 | E62: 0.0365 | F62: 0.042
A63: Days in Coupon Period | C63: 87 | D63: 87 | E63: 87 | F63: 87
A64: Coupon Entitlement to be paid out on the current Payment Date: 16 May 2019 | C64: 308228.18 | D64: 2071685.71 | E64: 97875 | F64: 103613.42
A67: TOTAL NOTE BALANCES
B68: Total Notes | C68: Class A1 Notes | D68: Class A2 Notes | E68: Class B Notes | F68: Class C Notes
A69: Initial Invested Amount | B69: =SUM(C69:F69) -> 423450000 | C69: 115000000 | D69: 286850000 | E69: 11250000 | F69: 10350000
A70: Invested Amount as at Previous Payment Date: 16 May 2019 | B70: =SUM(C70:F70) -> 296501687.2 | C70: 0 | D70: 274901687.2 | E70: 11250000 | F70: 10350000
A71: Stated Amount as at Previous Payment Date: 16 May 2019 | B71: 296501687.2 | C71: 0 | D71: 274901687.2 | E71: 11250000 | F71: 10350000
A72: Principal Payments to Noteholders on Payment Date | B72: 19267098.83 | C72: 0 | D72: 19267098.83 | E72: 0 | F72: 0
A73: Gross Aggregate Charge-Offs | B73: 0 | C73: 0 | D73: 0 | E73: 0 | F73: 0
A74: Gross Aggregate Reinstatements of charge-offs | B74: 0 | C74: 0 | D74: 0 | E74: 0 | F74: 0
A75: Aggregate Charge-Offs for this Collection Period | B75: 0 | C75: 0 | D75: 0 | E75: 0 | F75: 0
A76: Reinstatements relating to Charge-offs that have occurred this Collection Period | B76: 0 | C76: 0 | D76: 0 | E76: 0 | F76: 0
A77: Aggregate Carry Over Charge-offs not previously reinstated | B77: 0 | C77: 0 | D77: 0 | E77: 0 | F77: 0
A78: Reinstatements of Carry Over Charge-offs not previously reinstated | B78: 0 | C78: 0 | D78: 0 | E78: 0 | F78: 0
A79: Aggregate Charge-Offs not reinstated and to be carried over to next period | B79: =SUM(C79:G79) -> 0 | C79: 0 | D79: 0 | E79: 0 | F79: 0
A80: Invested Amount as at Payment Date: 16 August 2019 | B80: =SUM(C80:F80) -> 277234588.4 | C80: 0 | D80: 255634588.4 | E80: 11250000 | F80: 10350000
A81: Stated Amount as at Payment Date: 16 August 2019 | B81: =SUM(C81:F81) -> 277234588.4 | C81: 0 | D81: 255634588.4 | E81: 11250000 | F81: 10350000
A82: Bond Factor at Payment Date: 16 August 2019 | C82: 0 | D82: 0.8911786242 | E82: 1 | F82: 1
A83: Coupon Margin | C83: 0.0073 | D83: 0.0108 | E83: 0.017 | F83: 0.0225
A84: Coupon Rate (3 month BBSW + margin) | C84: 0.02355 | D84: 0.02705 | E84: 0.03325 | F84: 0.03875
A85: Days in Coupon Period | C85: 92 | D85: 92 | E85: 92 | F85: 92
A86: Coupon Entitlement to be paid out on the current Payment Date: 16 August 2019 | C86: 0 | D86: 1874302.3 | E86: 94284.25 | F86: 101089.73
A89: TOTAL NOTE BALANCES
B90: Total Notes | C90: Class A1 Notes | D90: Class A2 Notes | E90: Class B Notes | F90: Class C Notes
A91: Initial Invested Amount | B91: =SUM(C91:F91) -> 423450000 | C91: 115000000 | D91: 286850000 | E91: 11250000 | F91: 10350000
A92: Invested Amount as at Previous Payment Date: 16 August 2019 | B92: =SUM(C92:F92) -> 277234588.4 | C92: 0 | D92: 255634588.4 | E92: 11250000 | F92: 10350000
A93: Stated Amount as at Previous Payment Date: 16 August 2019 | B93: 277234588.4 | C93: 0 | D93: 255634588.4 | E93: 11250000 | F93: 10350000
A94: Principal Payments to Noteholders on Payment Date | B94: 20024406.32 | C94: 0 | D94: 20024406.32 | E94: 0 | F94: 0
A95: Gross Aggregate Charge-Offs | B95: =SUM(C95:G95) -> 0 | C95: 0 | D95: 0 | E95: 0 | F95: 0
A96: Gross Aggregate Reinstatements of charge-offs | B96: 0 | C96: 0 | D96: 0 | E96: 0 | F96: 0
A97: Aggregate Charge-Offs for this Collection Period | B97: 0 | C97: 0 | D97: 0 | E97: 0 | F97: 0
A98: Reinstatements relating to Charge-offs that have occurred this Collection Period | B98: =SUM(C98:G98) -> 0 | C98: 0 | D98: 0 | E98: 0 | F98: 0
A99: Aggregate Carry Over Charge-offs not previously reinstated | B99: 0 | C99: 0 | D99: 0 | E99: 0 | F99: 0
A100: Reinstatements of Carry Over Charge-offs not previously reinstated | B100: 0 | C100: 0 | D100: 0 | E100: 0 | F100: 0
A101: Aggregate Charge-Offs not reinstated and to be carried over to next period | B101: 0 | C101: 0 | D101: 0 | E101: 0 | F101: 0
A102: Invested Amount as at Payment Date: 18 November 2019 | B102: 257210182 | C102: 0 | D102: 235610182 | E102: 11250000 | F102: 10350000
A103: Stated Amount as at Payment Date: 18 November 2019 | B103: 257210182 | C103: 0 | D103: 235610182 | E103: 11250000 | F103: 10350000
A104: Bond Factor at Payment Date: 18 November 2019 | C104: 0 | D104: 0.8213706887 | E104: 1 | F104: 1
A105: Coupon Margin | C105: 0.0073 | D105: 0.0108 | E105: 0.017 | F105: 0.0225
A106: Coupon Rate (3 month BBSW + margin) | C106: 0.01695 | D106: 0.02045 | E106: 0.02665 | F106: 0.03215
A107: Days in Coupon Period | C107: 94 | D107: 94 | E107: 94 | F107: 94
A108: Coupon Entitlement to be paid out on the current Payment Date: 18 November 2019 | C108: 0 | D108: 1346318.82 | E108: 77211.99 | F108: 85695.16

Sheet Cumulative Defaults
A1: Cumulative Defaults & Losses
A3: Month | B3: Gross Losses | C3: Recoveries | D3: Net Losses
A4: 2018-10-01 | B4: 0 | C4: 0 | D4: 0
A5: 2019-01-01 | B5: 0 | C5: 0 | D5: =B5-C5 -> 0
A6: 2019-04-01 | B6: 0 | C6: 0 | D6: 0
A7: 2019-07-01 | B7: 0 | C7: 0 | D7: 0
A8: 2019-10-01 | B8: =B7+'Collateral Tables'!E9/450000000 -> 0.000516795 | C8: =C7+'Collateral Tables'!E23/450000000 -> 0 | D8: =B8-C8 -> 0.000516795

Sheet Collateral Tables
B1: CNHI CAPITAL AUSTRALIA RECEIVABLES TRUST SERIES 2018-1 (TERM DEAL)
B2: COLLATERAL DATA TABLES
B4: OUTSTANDING RECEIVABLES | E4: 2019-10-31 | I4: 2019-07-31 | M4: 2019-04-30 | Q4: 2018-01-31 | U4: 2018-10-31
B6: Opening Balance | E6: =I13 -> 303784588.4 | I6: 323051687.2 | M6: 383251538.4 | Q6: 410385213.2 | U6: 449999896.9
B7: Principal Repayments - Scheduled | E7: =MIN(([1]Sheet1!$B$3+[2]Sheet1!$B$3+[3]Sheet1!$B$3),'[4]18 Nov 19'!$H$23) -> 19571730.58 | I7: 19267098.83 | M7: 54340040.48 | Q7: 25925049.64 | U7: 32152734.13
B8: Principal Repayments - Unscheduled | E8: ='[4]18 Nov 19'!$H$23-'Collateral Tables'!E7 -> 452675.74 | I8: 0 | M8: 5859810.75 | Q8: 1208625.13 | U8: 7461949.57
A9: =SUM(U9) -> 0 | B9: Charge-Offs | E9: ='[4]18 Nov 19'!$H37 -> 232557.75 | I9: 0 | M9: 0 | Q9: 0 | U9: 0
B10: Reinstatements
B11: New Receivables Purchased
B12: Non Cash Change in Receivables
B13: Closing Balance | E13: =E6-E7-E8-E9+E10+E11-E12 -> 283527624.3 | I13: 303784588.4 | M13: 323051687.2 | Q13: 383251538.4 | U13: 410385213.2
B15: PORTFOLIO STATISTICS
B17: Summary
B18: Number of contracts | E18: =[5]Summary!$D$4 -> 3136 | I18: 3213 | M18: 3275 | Q18: 3359 | U18: 3402
B19: Dollar value of contracts | E19: =[5]Summary!$G$5 -> 283751171.8 | I19: 303784588.4 | M19: 323051687.2 | Q19: 383251538.4 | U19: 410385213.2
B20: Number of contracts closed during the Quarter | E20: =[5]Summary!$B$19 -> 77 | I20: 63 | M20: 84 | Q20: 43 | U20: 64
B21: Dollar value of contracts closed during the Quarter | E21: =[5]Summary!$B$20 -> 7503678.27 | I21: 2932187.7 | M21: 13591506.54 | Q21: 6683029.9 | U21: 8769089.47
A23: =SUM(U23) -> 0 | B23: Dollar Value of Recoveries from Collateral | E23: =[5]Summary!$C$16 -> 0 | I23: 0 | M23: 0 | Q23: 0 | U23: 0
B24: Dollar Value of Recoveries from Other Sources | E24: 0 | I24: 0 | M24: 0 | Q24: 0 | U24: 0
B26: Average Term of Contracts (Months) | E26: =[6]Sheet1!$W$3137 -> 55.22971886 | I26: 54.94778482 | M26: 54.73213946 | Q26: 54.13015289 | U26: 53.78689792
B27: Average Term to Maturity (Months) | E27: =[6]Sheet1!$X$3137 -> 31.29399252 | I27: 33.97737815 | M27: 36.71850971 | Q27: 39.11087557 | U27: 41.77629237
B28: Average Residual / Balloon Payment * | E28: =[6]Sheet1!$AI$3137 -> 0.04035487075 | I28: 0.03986054752 | M28: 0.03928013929 | Q28: 0.03977515463 | U28: 0.03973639986
B29: Average Seasoning (Months) | E29: =E26-E27 -> 23.93572634 | I29: 20.97040667 | M29: 18.01362975 | Q29: 15.01927732 | U29: 12.01060555
B30: Average Dollar Value of Individual Assets | E30: =E19/E18 -> 90481.87875 | I30: 94548.58026 | M30: 98641.73655 | Q30: 114096.9153 | U30: 120630.5741
B31: Weighted Average Interest Rate | E31: =[6]Sheet1!$AA$3137/100 -> 0.02564880055 | I31: 0.0255676767 | M31: 0.02548907479 | Q31: 0.0254717226 | U31: 0.0255019974
B33: Payment in Arrears
A34: 1. 0 - 30 Days | B34: 0 - 30 Days | E34: =IFERROR(VLOOKUP($A$34,'[7]Arrears Reporting'!$A$1:$D$5,3,FALSE),0) -> 3129 | F34: =IFERROR(VLOOKUP($A$34,'[7]Arrears Reporting'!$A$1:$D$5,2,FALSE),0) -> 40536.4 | G34: =F34/F$50 -> 0.0001429716067 | I34: 3204 | J34: 81213.81 | K34: 0.0002678107774 | M34: 3266 | N34: 362832.45 | O34: 0.001123140551 | Q34: 3354 | R34: 193610.89 | S34: 0.0005051796812 | U34: 3400 | V34: 279239.7 | W34: 0.0006804331419
A35: 2. 31 - 60 Days | B35: 31 - 60 Days | E35: =IFERROR(VLOOKUP($A$35,'[7]Arrears Reporting'!$A$1:$D$5,3,FALSE),0) -> 3 | F35: =IFERROR(VLOOKUP($A$35,'[7]Arrears Reporting'!$A$1:$D$5,2,FALSE),0) -> 182468.94 | G35: =F35/F$50 -> 0.0006435667087 | I35: 4 | J35: 139327.33 | K35: 0.000459446005 | M35: 6 | N35: 249320.55 | O35: 0.0007717667478 | Q35: 3 | R35: 8888.98 | S35: 2.319359248e-05 | U35: 1 | V35: 45938.87 | W35: 0.000111940851
A36: 3. 61 - 90 Days | B36: 61 - 90 Days | E36: =IFERROR(VLOOKUP($A$36,'[7]Arrears Reporting'!$A$1:$D$5,3,FALSE),0) -> 2 | F36: =IFERROR(VLOOKUP($A$36,'[7]Arrears Reporting'!$A$1:$D$5,2,FALSE),0) -> 65496.42 | G36: 0.0002310054273 | I36: 2 | J36: 58160.67 | K36: 0.0001917907096 | M36: 2 | N36: 44319.77 | O36: 0.0001371909566 | Q36: 2 | R36: 16836.88 | S36: 4.393166971e-05 | U36: 1 | V36: 2144.2 | W36: 5.224847122e-06
A37: 4. 91 - 120 Days | B37: 91 - 120 Days | E37: =IFERROR(VLOOKUP($A$37,'[7]Arrears Reporting'!$A$1:$D$5,3,FALSE),0) -> 1 | F37: =IFERROR(VLOOKUP($A$37,'[7]Arrears Reporting'!$A$1:$D$5,2,FALSE),0) -> 3097.71 | G37: 1.092560207e-05 | I37: 1 | J37: 3052.88 | K37: 1.006718151e-05 | M37: 1 | N37: 3108.05 | O37: 9.620906261e-06 | Q37: 0 | R37: 0 | S37: 0 | U37: 0 | V37: 0 | W37: 0
A38: 5. 121 - 150 Days | B38: 121 - 150 Days | E38: =IFERROR(VLOOKUP($A$38,'[7]Arrears Reporting'!$A$1:$D$5,3,FALSE),0) -> 0 | F38: =IFERROR(VLOOKUP($A$38,'[7]Arrears Reporting'!$A$1:$D$5,2,FALSE),0) -> 0 | G38: 0 | I38: 0 | J38: 0 | K38: 0 | M38: 0 | N38: 0 | O38: 0 | Q38: 0 | R38: 0 | S38: 0 | U38: 0 | V38: 0 | W38: 0
A39: 6. 151 - 180 Days | B39: 151 - 180 Days | E39: =IFERROR(VLOOKUP($A$39,'[7]Arrears Reporting'!$A$1:$D$5,3,FALSE),0) -> 0 | F39: =IFERROR(VLOOKUP($A$39,'[7]Arrears Reporting'!$A$1:$D$5,2,FALSE),0) -> 0 | G39: 0 | I39: 0 | J39: 0 | K39: 0 | M39: 0 | N39: 0 | O39: 0 | Q39: 0 | R39: 0 | S39: 0 | U39: 0 | V39: 0 | W39: 0
B40: Total | E40: =SUM(E34:E39) -> 3135 | F40: =SUM(F34:F39) -> 291599.47 | G40: =SUM(G34:G39) -> 0.001028469345 | I40: 3211 | J40: 281754.69 | K40: 0.0009291146735 | M40: 3275 | N40: 659580.82 | O40: 0.002041719162 | Q40: 3359 | R40: 219336.75 | S40: 0.0005723049434 | U40: 3402 | V40: 327322.77 | W40: 0.00079759884
B41: * Expressed as a % of Aggreg. Rec. closing bal. | F41: > 30 days | G41: =SUM(G35:G39) -> 0.0008854977381 | J41: > 30 days | K41: 0.0006613038961 | N41: > 30 days | O41: 0.0009185786107 | R41: > 30 days | S41: 6.712526219e-05 | V41: > 30 days | W41: 0.0001171656981
A43: 0 - 30 Days | B43: Account Balances in Arrears
A44: 1. 0 - 30 Days | B44: 0 - 30 Days | E44: =IFERROR(VLOOKUP($A$44,'[7]Arrears Reporting'!$A$1:$D$5,3,FALSE),0) -> 3129 | F44: =IFERROR(VLOOKUP($A$44,'[7]Arrears Reporting'!$A$1:$D$5,4,FALSE),0) -> 282723462.4 | G44: =F44/F$50 -> 0.9971637266 | I44: 3204 | J44: 302305095.7 | K44: 0.996881721 | M44: 3266 | N44: 321682443.1 | O44: 0.9957615323 | Q44: 3354 | R44: 382732142.2 | S44: 0.9986447643 | U44: 3400 | V44: 410108423.9 | W44: 0.9993255379
A45: 2. 31 - 60 Days | B45: 31 - 60 Days | E45: =IFERROR(VLOOKUP($A$45,'[7]Arrears Reporting'!$A$1:$D$5,3,FALSE),0) -> 3 | F45: =IFERROR(VLOOKUP($A$45,'[7]Arrears Reporting'!$A$1:$D$5,4,FALSE),0) -> 439163.95 | G45: =F45/F$50 -> 0.001548928261 | I45: 4 | J45: 615007.15 | K45: 0.002028048468 | M45: 6 | N45: 825480.22 | O45: 0.002555257418 | Q45: 3 | R45: 196286.38 | S45: 0.0005121607099 | U45: 1 | V45: 205758.3 | W45: 0.0005013784449
A46: 3. 61 - 90 Days | B46: 61 - 90 Days | E46: =IFERROR(VLOOKUP($A$46,'[7]Arrears Reporting'!$A$1:$D$5,3,FALSE),0) -> 2 | F46: =IFERROR(VLOOKUP($A$46,'[7]Arrears Reporting'!$A$1:$D$5,4,FALSE),0) -> 333572.33 | G46: 0.001176507336 | I46: 2 | J46: 297182.15 | K46: 0.0009799882879 | M46: 2 | N46: 508259.23 | O46: 0.001573306224 | Q46: 2 | R46: 323109.8 | S46: 0.0008430750241 | U46: 1 | V46: 71030.96 | W46: 0.0001730836242
A47: 4. 91 - 120 Days | B47: 91 - 120 Days | E47: =IFERROR(VLOOKUP($A$47,'[7]Arrears Reporting'!$A$1:$D$5,3,FALSE),0) -> 1 | F47: =IFERROR(VLOOKUP($A$47,'[7]Arrears Reporting'!$A$1:$D$5,4,FALSE),0) -> 31425.59 | G47: =F47/F$50 -> 0.0001108378419 | I47: 1 | J47: 33431.03 | K47: 0.0001102422129 | M47: 1 | N47: 35504.68 | O47: 0.0001099040228 | Q47: 0 | R47: 0 | S47: 0 | U47: 0 | V47: 0 | W47: 0
A48: 5. 121 - 150 Days | B48: 121 - 150 Days | E48: =IFERROR(VLOOKUP($A$48,'[7]Arrears Reporting'!$A$1:$D$5,3,FALSE),0) -> 0 | F48: =IFERROR(VLOOKUP($A$48,'[7]Arrears Reporting'!$A$1:$D$5,4,FALSE),0) -> 0 | G48: =F48/F$50 -> 0 | I48: 0 | J48: 0 | K48: 0 | M48: 0 | N48: 0 | O48: 0 | Q48: 0 | R48: 0 | S48: 0 | U48: 0 | V48: 0 | W48: 0
A49: 6. 151 - 180 Days | B49: 151 - 180 Days | E49: =IFERROR(VLOOKUP($A$49,'[7]Arrears Reporting'!$A$1:$D$5,3,FALSE),0) -> 0 | F49: =IFERROR(VLOOKUP($A$49,'[7]Arrears Reporting'!$A$1:$D$5,4,FALSE),0) -> 0 | G49: =F49/F$50 -> 0 | I49: 0 | J49: 0 | K49: 0 | M49: 0 | N49: 0 | O49: 0 | Q49: 0 | R49: 0 | S49: 0 | U49: 0 | V49: 0 | W49: 0
B50: Total | E50: =SUM(E44:E49) -> 3135 | F50: =SUM(F44:F49) -> 283527624.3 | G50: =SUM(G44:G49) -> 1 | I50: 3211 | J50: 303250716 | K50: 1 | M50: 3275 | N50: 323051687.2 | O50: 1 | Q50: 3359 | R50: 383251538.4 | S50: 1 | U50: 3402 | V50: 410385213.2 | W50: 1
A51: NSW | F51: > 30 days | G51: =SUM(G45:G49) -> 0.002836273439 | J51: > 30 days | K51: 0.003118278969 | N51: > 30 days | O51: 0.004238467664 | R51: > 30 days | S51: 0.001355235734 | V51: > 30 days | W51: 0.0006744620691
F52: >90 days | G52: =SUM(G47:G49) -> 0.0001108378419 | J52: >90 days | K52: 0.0001102422129 | N52: >90 days | O52: 0.0001099040228 | R52: >90 days | S52: 0 | V52: >90 days | W52: 0
A54: VIC | B54: Geographic Distribution
A55: NSW | B55: New South Wales | E55: =F55/F$63 -> 0.2808769635 | F55: =IFERROR(VLOOKUP($A$55,'[7]Geographic '!$A$1:$C$9,3,FALSE),0) -> 79636378.17 | I55: 0.2807897353 | J55: 85299594.15 | M55: 0.2861481856 | N55: 92440654.15 | Q55: 0.2873860314 | R55: 110141138.7 | U55: 0.2873614591 | V55: 117928893.7
A56: VIC | B56: Victoria | E56: =F56/F$63 -> 0.206693569 | F56: =IFERROR(VLOOKUP($A$56,'[7]Geographic '!$A$1:$C$9,3,FALSE),0) -> 58603336.57 | I56: 0.2090355814 | J56: 63501788.05 | M56: 0.2111431285 | N56: 68210143.91 | Q56: 0.2080030829 | R56: 79717501.5 | U56: 0.2030790641 | V56: 83340645
A57: QLD | B57: Queensland | E57: 0.1183281605 | F57: =IFERROR(VLOOKUP($A$57,'[7]Geographic '!$A$1:$C$9,3,FALSE),0) -> 33549302.22 | I57: 0.1251462276 | J57: 38017495.24 | M57: 0.1275135772 | N57: 41193476.24 | Q57: 0.1217068687 | R57: 46644344.66 | U57: 0.1278874537 | V57: 52483119.94
A58: SA | B58: South Australia | E58: 0.1868729966 | F58: =IFERROR(VLOOKUP($A$58,'[7]Geographic '!$A$1:$C$9,3,FALSE),0) -> 52983656.77 | I58: 0.1829315348 | J58: 55571780.99 | M58: 0.1793852458 | N58: 57950706.32 | Q58: 0.1811069481 | R58: 69409516.46 | U58: 0.1772651086 | V58: 72746979.4
A59: NT | B59: Northern Territory | E59: 0 | F59: =IFERROR(VLOOKUP($A$59,'[7]Geographic '!$A$1:$C$9,3,FALSE),0) -> 0 | I59: 0 | J59: 0 | M59: 0 | N59: 0 | Q59: 0 | R59: 0 | U59: 0 | V59: 0
A60: ACT | B60: Australian Capital Territory | E60: 0.0001456300426 | F60: =IFERROR(VLOOKUP($A$60,'[7]Geographic '!$A$1:$C$9,3,FALSE),0) -> 41290.14 | I60: 0.0001553585725 | J60: 47195.54 | M60: 0.0001643254999 | N60: 53085.63 | Q60: 0.0001538426962 | R60: 58960.45 | U60: 0.0001579493313 | V60: 64820.07
A61: TAS | B61: Tasmania | E61: 0.00853993732 | F61: =IFERROR(VLOOKUP($A$61,'[7]Geographic '!$A$1:$C$9,3,FALSE),0) -> 2421308.14 | I61: 0.008813454311 | J61: 2677391.59 | M61: 0.009278287063 | N61: 2997366.29 | Q61: 0.008438010877 | R61: 3233880.65 | U61: 0.008430941415 | V61: 3459933.69
A62: WA | B62: Western Australia | E62: 0.1985427431 | F62: =IFERROR(VLOOKUP($A$62,'[7]Geographic '!$A$1:$C$9,3,FALSE),0) -> 56292352.28 | I62: 0.193128108 | J62: 58669342.8 | M62: 0.1863672503 | N62: 60206254.65 | Q62: 0.1932052154 | R62: 74046196.03 | U62: 0.1958180238 | V62: 80360821.43
B63: Total | E63: =SUM(E55:E62) -> 1 | F63: =SUM(F55:F62) -> 283527624.3 | I63: 1 | J63: 303784588.4 | M63: 1 | N63: 323051687.2 | Q63: 1 | R63: 383251538.4 | U63: 1 | V63: 410385213.2
A64: AG | G64: =E13-F63 -> 0 | K64: 0 | O64: 0 | S64: 0 | W64: 0
A65: CE | B65: Top Industry Distribution
A66: AGRICULTURAL MACHINERY | B66: Agricultural | E66: =F66/F$69 -> 0.9295874179 | F66: =IFERROR(VLOOKUP($A$66,'[7]Top Industry'!$A$1:$C$4,3,FALSE),) -> 263563712.2 | I66: 0.9258960555 | J66: 281272952.1 | M66: 0.9226074997 | N66: 298049909.4 | Q66: 0.9287467551 | R66: 355943622.7 | U66: 0.9279649141 | V66: 380823079.1
A67: CONSTRUCTION EQUIPMENT | B67: Construction | E67: =F67/F$69 -> 0.07041258205 | F67: =IFERROR(VLOOKUP($A$67,'[7]Top Industry'!$A$1:$C$4,3,FALSE),) -> 19963912.11 | I67: 0.07410394451 | J67: 22511636.28 | M67: 0.07739250028 | N67: 25001777.79 | Q67: 0.07125324489 | R67: 27307915.72 | U67: 0.07203508589 | V67: 29562134.08
A68: MOTOR VEHICLE - AG | B68: Motor Vehicle AG | E68: =F68/F$69 -> 0 | F68: =IFERROR(VLOOKUP($A$68,'[7]Top Industry'!$A$1:$C$4,3,FALSE),) -> 0 | I68: 0 | J68: 0 | M68: 0 | N68: 0 | Q68: 0 | R68: 0 | U68: 0 | V68: 0
B69: Total | E69: =SUM(E66:E68) -> 1 | F69: =SUM(F66:F68) -> 283527624.3 | G69: =F63-F69 -> 0 | I69: 1 | J69: 303784588.4 | K69: -5.960464478e-07 | M69: 1 | N69: 323051687.2 | O69: 0 | Q69: 1 | R69: 383251538.4 | S69: 0 | U69: 1 | V69: 410385213.2 | W69: 0
A70: COMBINE
A71: 40-100 HP TRACTOR | B71: Collateral Types
A72: 100<140 HP TRACTOR | B72: 100<140 HP TRACTOR | E72: =IFERROR(F72/F$104,0) -> 0.09981155226 | F72: =IFERROR(VLOOKUP($A$72,[7]Collateral!$A$1:$C$34,3,FALSE),"") -> 28299332.29 | I72: 0.1024253226 | J72: 31115234.47 | M72: 0.1069875194 | N72: 34562498.65 | Q72: 0.1007218431 | R72: 38601801.33 | U72: 0.1005149474 | V72: 41249848.1
A73: 4 EWD TRACTORS | B73: 4 EWD TRACTORS | E73: 0.09956720535 | F73: =IFERROR(VLOOKUP($A$73,[7]Collateral!$A$1:$C$34,3,FALSE),"") -> 28230053.19 | I73: 0.09699543133 | J73: 29465717.18 | M73: 0.09523374132 | N73: 30765420.81 | Q73: 0.09838296406 | R73: 37705422.33 | U73: 0.1050830525 | V73: 43124530.91
A74: 40<60 HP TRACTOR | B74: 40<60 HP TRACTOR | E74: 0.01240555688 | F74: =IFERROR(VLOOKUP($A$74,[7]Collateral!$A$1:$C$34,3,FALSE),"") -> 3517318.07 | I74: 0.01306144782 | J74: 3967866.55 | M74: 0.01384121856 | N74: 4471429.01 | Q74: 0.01297568409 | R74: 4972950.89 | U74: 0.01318187027 | V74: 5409644.64
A75: 4WD Vehicle | B75: 4WD Vehicle | E75: 0.004211218476 | F75: =IFERROR(VLOOKUP($A$75,[7]Collateral!$A$1:$C$34,3,FALSE),"") -> 1193996.77 | I75: 0.004012879608 | J75: 1219050.98 | M75: 0.004171341502 | N75: 1347558.91 | Q75: 0.003991736801 | R75: 1529839.27 | U75: 0.003786480653 | V75: 1553915.67
A76: 60<100 HP TRACTOR | B76: 60<100 HP TRACTOR | E76: 0.04423171513 | F76: =IFERROR(VLOOKUP($A$76,[7]Collateral!$A$1:$C$34,3,FALSE),"") -> 12540913.11 | I76: 0.04592190264 | J76: 13950366.29 | M76: 0.04838767736 | N76: 15631720.81 | Q76: 0.04642114112 | R76: 17790973.75 | U76: 0.04693056209 | V76: 19259608.73
A77: BACKHOE | B77: BACKHOE | E77: 0.0008174319895 | F77: =IFERROR(VLOOKUP($A$77,[7]Collateral!$A$1:$C$34,3,FALSE),"") -> 231764.55 | I77: 0.0008485176664 | J77: 257766.59 | M77: 0.0008384535068 | N77: 270863.82 | Q77: 0.0007407284291 | R77: 283885.31 | U77: 0.0007233001835 | V77: 296831.7
A78: BALERS, WINDROWERS, MOWERS, RAKES | B78: BALERS, WINDROWERS, MOWERS, RAKES | E78: 0.02369399055 | F78: =IFERROR(VLOOKUP($A$78,[7]Collateral!$A$1:$C$34,3,FALSE),"") -> 6717900.85 | I78: 0.02482671455 | J78: 7541973.26 | M78: 0.02507467096 | N78: 8100414.76 | Q78: 0.02473187849 | R78: 9478530.48 | U78: 0.02501200821 | V78: 10264558.32
A79: COMBINES | B79: COMBINES | E79: 0.3299106673 | F79: =IFERROR(VLOOKUP($A$79,[7]Collateral!$A$1:$C$34,3,FALSE),"") -> 93538787.73 | I79: 0.3264174445 | J79: 99160589.01 | M79: 0.3152474639 | N79: 101841225.1 | Q79: 0.3336536982 | R79: 127873293.1 | U79: 0.327060747 | V79: 134220894.4
A80: COMPACT TRACK LOADER | B80: COMPACT TRACK LOADER | E80: 0.01279956392 | F80: =IFERROR(VLOOKUP($A$80,[7]Collateral!$A$1:$C$34,3,FALSE),"") -> 3629029.95 | I80: 0.01370381188 | J80: 4163006.85 | M80: 0.01433119267 | N80: 4629715.97 | Q80: 0.01319866905 | R80: 5058410.22 | U80: 0.01342818501 | V80: 5510728.57
A81: COMPACT WHEEL LOADER | B81: COMPACT WHEEL LOADER | E81: 0.0008137992923 | F81: =IFERROR(VLOOKUP($A$81,[7]Collateral!$A$1:$C$34,3,FALSE),"") -> 230734.58 | I81: 0.000813863308 | J81: 247239.13 | M81: 0.0008161382852 | N81: 263654.85 | Q81: 0.0007305445691 | R81: 279982.33 | U81: 0.0007218148717 | V81: 296222.15
A82: CRAWLER EXCAVATOR | B82: CRAWLER EXCAVATOR | E82: 0.01359919373 | F82: =IFERROR(VLOOKUP($A$82,[7]Collateral!$A$1:$C$34,3,FALSE),"") -> 3855747.09 | I82: 0.014480801 | J82: 4399044.17 | M82: 0.01484718443 | N82: 4796407.98 | Q82: 0.01354809351 | R82: 5192327.68 | U82: 0.01363802352 | V82: 5596843.19
A83: CULTIVATORS,SEEDERS, HARROWS | B83: CULTIVATORS,SEEDERS, HARROWS | E83: 0.01337059964 | F83: =IFERROR(VLOOKUP($A$83,[7]Collateral!$A$1:$C$34,3,FALSE),"") -> 3790934.35 | I83: 0.01282333347 | J83: 3895531.08 | M83: 0.01288881215 | N83: 4163752.51 | Q83: 0.01342730065 | R83: 5146033.63 | U83: 0.01294854875 | V83: 5313892.94
A84: DRILL | B84: DRILL | E84: 0.0008853426209 | F84: =IFERROR(VLOOKUP($A$84,[7]Collateral!$A$1:$C$34,3,FALSE),"") -> 251019.09 | I84: 0.000933343036 | J84: 283535.23 | M84: 0.0008776776016 | N84: 283535.23 | Q84: 0.0009270036109 | R84: 355275.56 | U84: 0.0008657123809 | V84: 355275.56
A85: EXCAVATORS / GRADERS | B85: EXCAVATORS / GRADERS | E85: 0.0002889964962 | F85: =IFERROR(VLOOKUP($A$85,[7]Collateral!$A$1:$C$34,3,FALSE),"") -> 81938.49 | I85: 0.0002982692456 | J85: 90609.6 | M85: 0.000313438945 | N85: 101256.98 | Q85: 0.0003003542281 | R85: 115111.22 | U85: 0.0003181265694 | V85: 130554.44
A86: FEEDERS, MIXERS, WAGONS, BINS, FEED STORAGE | B86: FEEDERS, MIXERS, WAGONS, BINS, FEED STORAGE | E86: 0.0002462636231 | F86: =IFERROR(VLOOKUP($A$86,[7]Collateral!$A$1:$C$34,3,FALSE),"") -> 69822.54 | I86: 0.000238066027 | J86: 72320.79 | M86: 0.0002353358395 | N86: 76025.64 | Q86: 0.0002577811701 | R86: 98795.03 | U86: 0.0002495211735 | V86: 102399.8
A87: FRONT END LOADER | B87: FRONT END LOADER | E87: 0.001268469945 | F87: =IFERROR(VLOOKUP($A$87,[7]Collateral!$A$1:$C$34,3,FALSE),"") -> 359646.27 | I87: 0.001291700781 | J87: 392398.79 | M87: 0.001345882616 | N87: 434789.65 | Q87: 0.001190239632 | R87: 456161.17 | U87: 0.001159013348 | V87: 475641.94
A88: FRONTS | B88: FRONTS | E88: 0.004860158912 | F88: =IFERROR(VLOOKUP($A$88,[7]Collateral!$A$1:$C$34,3,FALSE),"") -> 1377989.31 | I88: 0.004536073793 | J88: 1377989.31 | M88: 0.004485622851 | N88: 1449088.03 | Q88: 0.00431553678 | R88: 1653936.11 | U88: 0.004632208201 | V88: 1900989.75
A89: GRADER | B89: GRADER | E89: 0.000843046319 | F89: =IFERROR(VLOOKUP($A$89,[7]Collateral!$A$1:$C$34,3,FALSE),"") -> 239026.92 | I89: 0.0008252292565 | J89: 250691.93 | M89: 0.0008117752991 | N89: 262245.38 | Q89: 0.0007141219605 | R89: 273688.34 | U89: 0.0006945227334 | V89: 285021.86
A90: HARVESTERS - Other | B90: HARVESTERS - Other | E90: 0.008112444619 | F90: =IFERROR(VLOOKUP($A$90,[7]Collateral!$A$1:$C$34,3,FALSE),"") -> 2300102.15 | I90: 0.00793544351 | J90: 2410665.44 | M90: 0.007568133512 | N90: 2444898.3 | Q90: 0.0101431729 | R90: 3887386.62 | U90: 0.01004695027 | V90: 4123119.83
A91: IRRIGATION EQUIPMENT | B91: IRRIGATION EQUIPMENT | E91: 0.001357631451 | F91: =IFERROR(VLOOKUP($A$91,[7]Collateral!$A$1:$C$34,3,FALSE),"") -> 384926.02 | I91: 0.001350381835 | J91: 410225.19 | M91: 0.001347091804 | N91: 435180.28 | Q91: 0.001254469172 | R91: 480777.24 | U91: 0.001230692856 | V91: 505058.15
A92: MIDI CRAWLER EXCAVATOR | B92: MIDI CRAWLER EXCAVATOR | E92: 0.000660776284 | F92: =IFERROR(VLOOKUP($A$92,[7]Collateral!$A$1:$C$34,3,FALSE),"") -> 187348.33 | I92: 0.0007026285012 | J92: 213447.71 | M92: 0.0007411331359 | N92: 239424.31 | Q92: 0.0008286255844 | R92: 317572.03 | U92: 0.0008451056199 | V92: 346818.85
A93: MINI EXCAVATOR | B93: MINI EXCAVATOR | E93: 0.0163727835 | F93: =IFERROR(VLOOKUP($A$93,[7]Collateral!$A$1:$C$34,3,FALSE),"") -> 4642136.41 | I93: 0.01740318769 | J93: 5286820.21 | M93: 0.01839977513 | N93: 5944078.4 | Q93: 0.01706366004 | R93: 6539673.96 | U93: 0.01734885942 | V93: 7119715.37
A94: OTHER AG | B94: OTHER AG | E94: 0.008020808363 | F94: =IFERROR(VLOOKUP($A$94,[7]Collateral!$A$1:$C$34,3,FALSE),"") -> 2274120.74 | I94: 0.008064850403 | J94: 2449977.26 | M94: 0.008956237731 | N94: 2893327.71 | Q94: 0.009073293859 | R94: 3477353.83 | U94: 0.008849661253 | V94: 3631770.12
A95: OTHER CE | B95: OTHER CE | E95: 0.0001392419173 | F95: =IFERROR(VLOOKUP($A$95,[7]Collateral!$A$1:$C$34,3,FALSE),"") -> 39478.93 | I95: 0.0001428192926 | J95: 43386.3 | M95: 0.0001463739763 | N95: 47286.36 | Q95: 0.0001462353425 | R95: 56044.92 | U95: 0.0001515592375 | V95: 62197.67
A96: OVER 140 HP TRACTOR | B96: OVER 140 HP TRACTOR | E96: 0.2005514459 | F96: =IFERROR(VLOOKUP($A$96,[7]Collateral!$A$1:$C$34,3,FALSE),"") -> 56861875.01 | I96: 0.2005082721 | J96: 60911322.9 | M96: 0.2035777987 | N96: 65766151.34 | Q96: 0.1958286229 | R96: 75051621 | U96: 0.1933338114 | V96: 79341337.39
A97: SCRAPERS | B97: SCRAPERS | E97: 0.0006737723017 | F97: =IFERROR(VLOOKUP($A$97,[7]Collateral!$A$1:$C$34,3,FALSE),"") -> 191033.06 | I97: 0.0007215966129 | J97: 219209.93 | M97: 0.0007649675262 | N97: 247124.05 | Q97: 0.0007169686288 | R97: 274779.33 | U97: 0.000736331501 | V97: 302179.56
A98: SKID STEER LOADER | B98: SKID STEER LOADER | E98: 0.01617374678 | F98: =IFERROR(VLOOKUP($A$98,[7]Collateral!$A$1:$C$34,3,FALSE),"") -> 4585704 | I98: 0.01682163831 | J98: 5110154.47 | M98: 0.01792446135 | N98: 5790527.48 | Q98: 0.016469758 | R98: 6312060.09 | U98: 0.01664169164 | V98: 6829504.17
A99: SKIDSTEER / UNILOADER | B99: SKIDSTEER / UNILOADER | E99: 0.0002260632986 | F99: =IFERROR(VLOOKUP($A$99,[7]Collateral!$A$1:$C$34,3,FALSE),"") -> 64095.19 | I99: 0.0002333510083 | J99: 70888.44 | M99: 0.0002404227654 | N99: 77668.98 | Q99: 0.000220316976 | R99: 84436.82 | U99: 0.0002341051941 | V99: 96073.31
A100: SPRAYING EQUIPMENT | B100: SPRAYING EQUIPMENT | E100: 0.07623130767 | F100: =IFERROR(VLOOKUP($A$100,[7]Collateral!$A$1:$C$34,3,FALSE),"") -> 21613681.56 | I100: 0.0735872316 | J100: 22354666.86 | M100: 0.07126312829 | N100: 23021673.83 | Q100: 0.07039003812 | R100: 26977090.4 | U100: 0.07196606077 | V100: 29533807.19
A101: TRENCHERS | B101: TRENCHERS | E101: 0.0002894773665 | F101: =IFERROR(VLOOKUP($A$101,[7]Collateral!$A$1:$C$34,3,FALSE),"") -> 82074.83 | I101: 0.0003230453873 | J101: 98136.21 | M101: 0.0003531376387 | N101: 114081.71 | Q101: 0.0003389736426 | R101: 129912.17 | U101: 0.0003548577905 | V101: 145628.39
A102: UNDER 40 HP TRACTORS | B102: UNDER 40 HP TRACTORS | E102: 0.0008510392263 | F102: =IFERROR(VLOOKUP($A$102,[7]Collateral!$A$1:$C$34,3,FALSE),"") -> 241293.13 | I102: 0.0009662158689 | J102: 293521.49 | M102: 0.001118145654 | N102: 361218.84 | Q102: 0.001060350421 | R102: 406380.93 | U102: 0.001113065616 | V102: 456785.67
A103: WHEEL LOADERS | B103: WHEEL LOADERS | E103: 0.006714688859 | F103: =IFERROR(VLOOKUP($A$103,[7]Collateral!$A$1:$C$34,3,FALSE),"") -> 1903799.78 | I103: 0.006785185355 | J103: 2061234.74 | M103: 0.006864045625 | N103: 2217441.52 | Q103: 0.006236194928 | R103: 2390031.3 | U103: 0.006198602601 | V103: 2543814.85
B104: Total | E104: =SUM(E72:E103) -> 1 | F104: =SUM(F72:F103) -> 283527624.3 | G104: =F69-F104 -> 0 | I104: 1 | J104: 303784588.4 | K104: 5.36441803e-07 | M104: 1 | N104: 323051687.2 | O104: 0 | Q104: 1 | R104: 383251538.4 | S104: 0 | U104: 1 | V104: 410385213.2 | W104: -5.36441803e-07
A105: $ 0 - $25,000
A106: $ 25,001 to $50,000 | B106: Contract Balance Distribution
A107: $0 - $25,000 | B107: $ 0 - $25,000 | E107: =IFERROR(F107/F$118,0) -> 0.04504295065 | F107: =IFERROR(VLOOKUP($A$107,'[7] Balance Distribution'!$A$1:$C$13,3,FALSE),"") -> 12770920.79 | I107: 0.03818290181 | J107: 11599377.11 | M107: 0.032887208 | N107: 10624268.03 | Q107: 0.02555686834 | R107: 9794709.11 | U107: 0.02081679904 | V107: 8542906.51
A108: $25,001 - $50,000 | B108: $ 25,001 to $50,000 | E108: =IFERROR(F108/F$118,0) -> 0.09746287622 | F108: =IFERROR(VLOOKUP($A$108,'[7] Balance Distribution'!$A$1:$C$13,3,FALSE),"") -> 27633417.75 | I108: 0.09703942369 | J108: 29479081.38 | M108: 0.09601937588 | N108: 31019221.38 | Q108: 0.08171591493 | R108: 31317750.11 | U108: 0.07817960331 | V108: 32083753.17
A109: $50,001 - $75,000 | B109: $ 50,001 to $75,000 | E109: 0.08089837287 | F109: =IFERROR(VLOOKUP($A$109,'[7] Balance Distribution'!$A$1:$C$13,3,FALSE),"") -> 22936923.47 | I109: 0.08279294538 | J109: 25151220.83 | M109: 0.08368573839 | N109: 27034818.98 | Q109: 0.07659304401 | R109: 29354401.95 | U109: 0.0744063609 | V109: 30535270.28
A110: $75,001 - $100,000 | B110: $ 75,001 to $100,000 | E110: 0.06806535828 | F110: =IFERROR(VLOOKUP($A$110,'[7] Balance Distribution'!$A$1:$C$13,3,FALSE),"") -> 19298409.33 | I110: 0.06916450029 | J110: 21011109.25 | M110: 0.06795720013 | N110: 21953688.16 | Q110: 0.05893560337 | R110: 22587160.66 | U110: 0.0594009675 | V110: 24377278.71
A111: $100,001 - $125,000 | B111: $100,001 to $125,000 | E111: 0.06127377526 | F111: =IFERROR(VLOOKUP($A$111,'[7] Balance Distribution'!$A$1:$C$13,3,FALSE),"") -> 17372807.93 | I111: 0.06382546812 | J111: 19389193.56 | M111: 0.06509402258 | N111: 21028733.82 | Q111: 0.0513872266 | R111: 19694233.65 | U111: 0.05168921196 | V111: 21212488.27
A112: $125,001 - $150,000 | B112: $125,001 to $150,000 | E112: 0.06190635947 | F112: =IFERROR(VLOOKUP($A$112,'[7] Balance Distribution'!$A$1:$C$13,3,FALSE),"") -> 17552163.03 | I112: 0.05942952043 | J112: 18053772.4 | M112: 0.05821399354 | N112: 18806128.83 | Q112: 0.04562057536 | R112: 17484155.69 | U112: 0.04220120877 | V112: 17318752.06
A113: $150,001 - $200,000 | B113: $150,000 to $200,000 | E113: 0.1387091751 | F113: =IFERROR(VLOOKUP($A$113,'[7] Balance Distribution'!$A$1:$C$13,3,FALSE),"") -> 39327882.87 | I113: 0.1319398416 | J113: 40081290.47 | M113: 0.1264149427 | N113: 40838560.51 | Q113: 0.1016143558 | R113: 38943858.18 | U113: 0.09555164012 | V113: 39212980.2
A114: $200,001 - $300,000 | B114: $200,001 to $300,000 | E114: 0.2208623955 | F114: =IFERROR(VLOOKUP($A$114,'[7] Balance Distribution'!$A$1:$C$13,3,FALSE),"") -> 62620590.28 | I114: 0.2235023181 | J114: 67896559.7 | M114: 0.2315298122 | N114: 74796096.48 | Q114: 0.2228507824 | R114: 85407905.21 | U114: 0.2182221853 | V114: 89555158.05
A115: $300,001 - $400,000 | B115: $300,001 to $400,000 | E115: 0.1357431338 | F115: =IFERROR(VLOOKUP($A$115,'[7] Balance Distribution'!$A$1:$C$13,3,FALSE),"") -> 38486928.25 | I115: 0.1406380615 | J115: 42723675.61 | M115: 0.1427447743 | N115: 46113940.16 | Q115: 0.1677875304 | R115: 64304829.17 | U115: 0.1699388093 | V115: 69740374.5
A116: $400,001 - $500,000 | B116: $400,001 to $500,000 | E116: 0.04588981431 | F116: =IFERROR(VLOOKUP($A$116,'[7] Balance Distribution'!$A$1:$C$13,3,FALSE),"") -> 13011030.03 | I116: 0.05028782985 | J116: 15276667.69 | M116: 0.04588177415 | N116: 14822184.55 | Q116: 0.0917364823 | R116: 35158147.97 | U116: 0.1000432276 | V116: 41056261.3
A117: $500,001+ | B117: $500,000+ | E117: 0.04414578859 | F117: =IFERROR(VLOOKUP($A$117,'[7] Balance Distribution'!$A$1:$C$13,3,FALSE),"") -> 12516550.56 | I117: 0.04319718927 | J117: 13122640.36 | M117: 0.04957115819 | N117: 16014046.29 | Q117: 0.07620161641 | R117: 29204386.72 | U117: 0.08954998611 | V117: 36749990.14
A118: $200,001 to $300,000 | B118: Total | E118: =SUM(E107:E117) -> 1 | F118: =SUM(F107:F117) -> 283527624.3 | G118: =F104-F118 -> 0 | I118: 1 | J118: 303784588.4 | K118: 0 | M118: 1 | N118: 323051687.2 | O118: 0 | Q118: 1 | R118: 383251538.4 | S118: 0 | U118: 1 | V118: 410385213.2 | W118: 0
A119: 0
A120: 0 to 5 | B120: Residual / Balloon Payment Distribution
A121: 0 | B121: 0 | E121: =IFERROR(F121/F$131,0) -> 0.8616351334 | F121: =IFERROR(VLOOKUP($A$121,'[7]Residual '!$A$1:$C$11,3,FALSE),"") -> 244297362.4 | I121: 0.86416124 | J121: 262518866.6 | M121: 0.8662071258 | N121: 279829673.4 | Q121: 0.8704298744 | R121: 333593588.5 | U121: 0.870280567 | V121: 357150276
A122: 0 to 5 | B122: 0 to 5 | E122: =IFERROR(F122/F$131,0) -> 0 | F122: =IFERROR(VLOOKUP($A$122,'[7]Residual '!$A$1:$C$11,3,FALSE),"") ->  | I122: 0 | M122: 0 | Q122: 0 | U122: 0
A123: 6 to 10 | B123: 06 to 10 | E123: 0.002180564174 | F123: =IFERROR(VLOOKUP($A$123,'[7]Residual '!$A$1:$C$11,3,FALSE),"") -> 618250.18 | I123: 0.00213396125 | J123: 648264.54 | M123: 0.002191498445 | N123: 707967.27 | Q123: 0.001963191963 | R123: 752396.34 | U123: 0.00190546997 | V123: 781976.7
A124: 11 to 15 | B124: 11 to 15 | E124: 0.002293251466 | F124: =IFERROR(VLOOKUP($A$124,'[7]Residual '!$A$1:$C$11,3,FALSE),"") -> 650200.14 | I124: 0.002218697083 | J124: 674005.98 | M124: 0.002159654129 | N124: 697679.91 | Q124: 0.002021091665 | R124: 774586.49 | U124: 0.001944512824 | V124: 797999.31
A125: 16 to 20 | B125: 16 to 20 | E125: 0.02710671741 | F125: =IFERROR(VLOOKUP($A$125,'[7]Residual '!$A$1:$C$11,3,FALSE),"") -> 7685503.19 | I125: 0.02700791325 | J125: 8204587.81 | M125: 0.02676864357 | N125: 8647655.47 | Q125: 0.0237280039 | R125: 9093794 | U125: 0.02404679056 | V125: 9868447.27
A126: 21 to 25 | B126: 21 to 25 | E126: 0.01258342382 | F126: =IFERROR(VLOOKUP($A$126,'[7]Residual '!$A$1:$C$11,3,FALSE),"") -> 3567748.26 | I126: 0.01189456295 | J126: 3613384.91 | M126: 0.01134907219 | N126: 3666336.92 | Q126: 0.01116499111 | R126: 4279000.02 | U126: 0.01053520339 | V126: 4323491.69
A127: 26 to 30 | B127: 26 to 30 | E127: 0.05072331589 | F127: =IFERROR(VLOOKUP($A$127,'[7]Residual '!$A$1:$C$11,3,FALSE),"") -> 14381461.25 | I127: 0.04797872581 | J127: 14575197.47 | M127: 0.04781037528 | N127: 15445222.4 | Q127: 0.04289483361 | R127: 16439510.97 | U127: 0.04197909485 | V127: 17227599.79
A128: 31 to 35 | B128: 31 to 35 | E128: 0.01463804883 | F128: =IFERROR(VLOOKUP($A$128,'[7]Residual '!$A$1:$C$11,3,FALSE),"") -> 4150291.21 | I128: 0.01546994031 | J128: 4699529.45 | M128: 0.01492466637 | N128: 4821438.65 | Q128: 0.01368344649 | R128: 5244201.92 | U128: 0.0168276893 | V128: 6905834.86
A129: 36 to 40 | B129: 36 to 40 | E129: 0.02308113845 | F129: =IFERROR(VLOOKUP($A$129,'[7]Residual '!$A$1:$C$11,3,FALSE),"") -> 6544140.35 | I129: 0.02231215931 | J129: 6778090.13 | M129: 0.02152154029 | N129: 6952569.9 | Q129: 0.02192356869 | R129: 8402241.43 | U129: 0.02103102401 | V129: 8630821.27
A130: 41+ % | B130: 41+% | E130: 0.005758406554 | F130: =IFERROR(VLOOKUP($A$130,'[7]Residual '!$A$1:$C$11,3,FALSE),"") -> 1632667.33 | I130: 0.006822800002 | J130: 2072661.49 | M130: 0.007067423977 | N130: 2283143.24 | Q130: 0.01219099813 | R130: 4672218.79 | U130: 0.01144964808 | V130: 4698766.27
E131: =SUM(E121:E130) -> 1 | F131: =SUM(F121:F130) -> 283527624.3 | G131: =F118-F131 -> 0 | I131: 1 | J131: 303784588.4 | K131: 0 | M131: 1 | N131: 323051687.2 | O131: 0 | Q131: 1 | R131: 383251538.4 | S131: 0 | U131: 1 | V131: 410385213.2 | W131: 0
A132: 2004 Q1
A133: 2004 Q2 | B133: Quarter of Maturity Distribution
A134: =RIGHT(B134,2)&LEFT(B134,4) -> Q42018 | B134: 2018Q4 | E134: =F134/F$157 -> 0 | F134: =IFERROR(VLOOKUP($A$134,'[7]Quarter of Maturity Dist'!$A$1:$C$23,3,FALSE),0) -> 0 | I134: 0 | J134: 0 | M134: 0 | N134: 0 | Q134: 0 | R134: 0 | U134: 0.003885587562 | V134: 1594587.68
A135: Q12019 | B135: 2019Q1 | E135: 0 | F135: =IFERROR(VLOOKUP($A$135,'[7]Quarter of Maturity Dist'!$A$1:$C$23,3,FALSE),0) -> 0 | I135: 0 | J135: 0 | M135: 0.0005727170522 | N135: 185017.21 | Q135: 0.005452895554 | R135: 2089830.61 | U135: 0.005226231212 | V135: 2144768.01
A136: =RIGHT(B136,2)&LEFT(B136,4) -> Q22019 | B136: 2019Q2 | E136: 0 | F136: =IFERROR(VLOOKUP($A$136,'[7]Quarter of Maturity Dist'!$A$1:$C$23,3,FALSE),0) -> 0 | I136: 0 | J136: 0 | M136: 0.000379570963 | N136: 122621.04 | Q136: 0.0008260884256 | R136: 316599.66 | U136: 0.0009227034938 | V136: 378663.87
A137: =RIGHT(B137,2)&LEFT(B137,4) -> Q32019 | B137: 2019Q3 | E137: 0 | F137: =IFERROR(VLOOKUP($A$137,'[7]Quarter of Maturity Dist'!$A$1:$C$23,3,FALSE),0) -> 0 | I137: 0.002013992821 | J137: 611819.98 | M137: 0.002166096999 | N137: 699761.29 | Q137: 0.002056852017 | R137: 788291.7 | U137: 0.00212440203 | V137: 871823.18
A138: Q42019 | B138: 2019Q4 | E138: 0.001038489956 | F138: =IFERROR(VLOOKUP($A$138,'[7]Quarter of Maturity Dist'!$A$1:$C$23,3,FALSE),0) -> 294440.59 | I138: 0.001429696195 | J138: 434319.67 | M138: 0.001737596868 | N138: 561333.6 | Q138: 0.001747141036 | R138: 669594.49 | U138: 0.002133772982 | V138: 875668.88
A139: Q12020 | B139: 2020Q1 | E139: 0.007506154031 | F139: =IFERROR(VLOOKUP($A$139,'[7]Quarter of Maturity Dist'!$A$1:$C$23,3,FALSE),0) -> 2128202.02 | I139: 0.007200685432 | J139: 2187457.26 | M139: 0.007505616488 | N139: 2424702.07 | Q139: 0.0128488106 | R139: 4924326.43 | U139: 0.01280247655 | V139: 5253947.07
A140: Q22020 | B140: 2020Q2 | E140: 0.00980633685 | F140: =IFERROR(VLOOKUP($A$140,'[7]Quarter of Maturity Dist'!$A$1:$C$23,3,FALSE),0) -> 2780367.39 | I140: 0.01088272785 | J140: 3306005 | M140: 0.01446805897 | N140: 4673930.86 | Q140: 0.01609848951 | R140: 6169770.87 | U140: 0.01608000381 | V140: 6598995.79
A141: Q32020 | B141: 2020Q3 | E141: 0.01242589705 | F141: =IFERROR(VLOOKUP($A$141,'[7]Quarter of Maturity Dist'!$A$1:$C$23,3,FALSE),0) -> 3523085.07 | I141: 0.01522394126 | J141: 4624798.73 | M141: 0.01662399146 | N141: 5370408.49 | Q141: 0.01612788655 | R141: 6181037.33 | U141: 0.01714681227 | V141: 7036798.21
A142: Q42020 | B142: 2020Q4 | E142: 0.0261990121 | F142: =IFERROR(VLOOKUP($A$142,'[7]Quarter of Maturity Dist'!$A$1:$C$23,3,FALSE),0) -> 7428143.66 | I142: 0.0303836554 | J142: 9230086.25 | M142: 0.03025916712 | N142: 9775274.99 | Q142: 0.02924016737 | R142: 11206339.13 | U142: 0.03198479874 | V142: 13126088.45
A143: Q12021 | B143: 2021Q1 | E143: 0.053174719 | F143: =IFERROR(VLOOKUP($A$143,'[7]Quarter of Maturity Dist'!$A$1:$C$23,3,FALSE),0) -> 15076501.75 | I143: 0.05286755812 | J143: 16060349.38 | M143: 0.05166553843 | N143: 16690639.36 | Q143: 0.05500550865 | R143: 21080945.81 | U143: 0.05743718631 | V143: 23571371.95
A144: Q22021 | B144: 2021Q2 | E144: 0.03058596097 | F144: =IFERROR(VLOOKUP($A$144,'[7]Quarter of Maturity Dist'!$A$1:$C$23,3,FALSE),0) -> 8671964.85 | I144: 0.03037063246 | J144: 9226130.08 | M144: 0.03381873859 | N144: 10925200.56 | Q144: 0.03217406106 | R144: 12330758.4 | U144: 0.03216050829 | V144: 13198197.05
A145: Q32021 | B145: 2021Q3 | E145: 0.02402807665 | F145: =IFERROR(VLOOKUP($A$145,'[7]Quarter of Maturity Dist'!$A$1:$C$23,3,FALSE),0) -> 6812623.49 | I145: 0.02544695944 | J145: 7730394.1 | M145: 0.02644324552 | N145: 8542535.08 | Q145: 0.02499442126 | R145: 9579150.4 | U145: 0.02446015652 | V145: 10038086.55
A146: Q42021 | B146: 2021Q4 | E146: 0.02877037968 | F146: =IFERROR(VLOOKUP($A$146,'[7]Quarter of Maturity Dist'!$A$1:$C$23,3,FALSE),0) -> 8157197.4 | I146: 0.03024022858 | J146: 9186515.39 | M146: 0.03043261088 | N146: 9831306.29 | Q146: 0.02908386006 | R146: 11146434.11 | U146: 0.03207319927 | V146: 13162366.72
A147: Q12022 | B147: 2022Q1 | E147: 0.1678704931 | F147: =IFERROR(VLOOKUP($A$147,'[7]Quarter of Maturity Dist'!$A$1:$C$23,3,FALSE),0) -> 47595922.11 | I147: 0.1646026709 | J147: 50003754.62 | M147: 0.1578629914 | N147: 50997905.72 | Q147: 0.1766014379 | R147: 67682772.78 | U147: 0.1743152664 | V147: 71536407.76
A148: Q22022 | B148: 2022Q2 | E148: 0.1454678555 | F148: =IFERROR(VLOOKUP($A$148,'[7]Quarter of Maturity Dist'!$A$1:$C$23,3,FALSE),0) -> 41244155.48 | I148: 0.1417724206 | J148: 43068276.44 | M148: 0.1482224444 | N148: 47883510.74 | Q148: 0.1448614054 | R148: 55518356.46 | U148: 0.1411568684 | V148: 57928691.55
A149: Q32022 | B149: 2022Q3 | E149: 0.09390309761 | F149: =IFERROR(VLOOKUP($A$149,'[7]Quarter of Maturity Dist'!$A$1:$C$23,3,FALSE),0) -> 26624122.18 | I149: 0.09903123777 | J149: 30084163.8 | M149: 0.09957488091 | N149: 32167833.28 | Q149: 0.09112838914 | R149: 34925095.33 | U149: 0.08852854626 | V149: 36330806.33
A150: Q42022 | B150: 2022Q4 | E150: 0.1204439078 | F150: =IFERROR(VLOOKUP($A$150,'[7]Quarter of Maturity Dist'!$A$1:$C$23,3,FALSE),0) -> 34149175.05 | I150: 0.1207145619 | J150: 36671223.51 | M150: 0.1193432574 | N150: 38554040.67 | Q150: 0.1088387741 | R150: 41712627.63 | U150: 0.1104300206 | V150: 45318847.53
A151: Q12023 | B151: 2023Q1 | E151: 0.2107390228 | F151: =IFERROR(VLOOKUP($A$151,'[7]Quarter of Maturity Dist'!$A$1:$C$23,3,FALSE),0) -> 59750334.47 | I151: 0.2029248616 | J151: 61645445.55 | M151: 0.1949691515 | N151: 62985113.33 | Q151: 0.1901408155 | R151: 72871760.05 | U151: 0.187361633 | V151: 76890443.69
A152: Q22023 | B152: 2023Q2 | E152: 0.05011400799 | F152: =IFERROR(VLOOKUP($A$152,'[7]Quarter of Maturity Dist'!$A$1:$C$23,3,FALSE),0) -> 14208705.63 | I152: 0.0478565098 | J152: 14538070.13 | M152: 0.04748981268 | N152: 15341664.11 | Q152: 0.04711531151 | R152: 18057015.62 | U152: 0.04464541058 | V152: 18321816.34
A153: Q32023 | B153: 2023Q3 | E153: 0.003115081545 | F153: =IFERROR(VLOOKUP($A$153,'[7]Quarter of Maturity Dist'!$A$1:$C$23,3,FALSE),0) -> 883211.67 | I153: 0.003056019876 | J153: 928371.74 | M153: 0.003059869888 | N153: 988496.13 | Q153: 0.002798376634 | R153: 1072482.15 | U153: 0.002734771439 | V153: 1122309.76
A154: Q42023 | B154: 2023Q4 | E154: 0.01107611383 | F154: =IFERROR(VLOOKUP($A$154,'[7]Quarter of Maturity Dist'!$A$1:$C$23,3,FALSE),0) -> 3140384.24 | I154: 0.01049532995 | J154: 3188319.49 | M154: 0.01012625923 | N154: 3271305.13 | Q154: 0.009949528019 | R154: 3813171.92 | U154: 0.009357154221 | V154: 3840037.73
A155: Q12024 | B155: 2024Q1 | E155: 0.003735393483 | F155: =IFERROR(VLOOKUP($A$155,'[7]Quarter of Maturity Dist'!$A$1:$C$23,3,FALSE),0) -> 1059087.24 | I155: 0.003486309973 | J155: 1059087.24 | M155: 0.003278383249 | N155: 1059087.24 | Q155: 0.002909779683 | R155: 1115177.54 | U155: 0.003032490085 | V155: 1244489.09
E157: =SUM(E134:E155) -> 1 | F157: =SUM(F134:F156) -> 283527624.3 | G157: =F131-F157 -> 0 | I157: 1 | J157: 303784588.4 | K157: 0 | M157: 1 | N157: 323051687.2 | O157: 0 | Q157: 1 | R157: 383251538.4 | S157: 0 | U157: 1 | V157: 410385213.2 | W157: 0
A158: 0 to 6 months
A159: 07 to 12 months | B159: Seasoning Distribution
A160: 0 to 6 months | B160: 0 to 6 months | E160: =F160/F$171 -> 0 | F160: =IFERROR(VLOOKUP($A$160,'[7]Seasoning Distribution'!$A$1:$C$6,3,FALSE),0) -> 0 | I160: 0 | J160: 0 | M160: 0 | N160: 0 | Q160: 0 | R160: 0 | U160: 0 | V160: 0
A161: 07 to 12 months | B161: 07 to 12 months | E161: =F161/F$171 -> 0 | F161: =IFERROR(VLOOKUP($A$161,'[7]Seasoning Distribution'!$A$1:$C$6,3,FALSE),0) -> 0 | I161: 0 | J161: 0 | M161: 0 | N161: 0 | Q161: 0.2178697716 | R161: 83498925.16 | U161: 0.4399251713 | V161: 180538785.2
A162: 13 to 18 months | B162: 13 to 18 months | E162: 0 | F162: =IFERROR(VLOOKUP($A$162,'[7]Seasoning Distribution'!$A$1:$C$6,3,FALSE),0) -> 0 | I162: 0.2069290924 | J162: 62861869.14 | M162: 0.4356645574 | N162: 140742170.3 | Q162: 0.5804329689 | R162: 222451828.3 | U162: 0.513586857 | V162: 210768451.8
A163: 19 to 24 months | B163: 19 to 24 months | E163: 0.4482337787 | F163: =IFERROR(VLOOKUP($A$163,'[7]Seasoning Distribution'!$A$1:$C$6,3,FALSE),0) -> 127086658.4 | I163: 0.5975010786 | J163: 181511619.2 | M163: 0.5209938686 | N163: 168307948.3 | Q163: 0.2005346615 | R163: 76855217.52 | U163: 0.04645827159 | V163: 19065787.69
A164: 25 to 30 months | B164: 25 to 30 months | E164: 0.5073928659 | F164: =IFERROR(VLOOKUP($A$164,'[7]Seasoning Distribution'!$A$1:$C$6,3,FALSE),0) -> 143859893.8 | I164: 0.1945786384 | J164: 59109991.58 | M164: 0.04332264116 | N164: 13995452.32 | Q164: 0.001162597969 | R164: 445567.46 | U164: 2.970007108e-05 | V164: 12188.47
A165: 31 to 36 months | B165: 31 to 36 months | E165: 0.04437335548 | F165: =IFERROR(VLOOKUP($A$165,'[7]Seasoning Distribution'!$A$1:$C$6,3,FALSE),0) -> 12581072.06 | I165: 0.0009911906052 | J165: 301108.43 | M165: 1.893279077e-05 | N165: 6116.27 | Q165: 0 | R165: 0 | U165: 0 | V165: 0
A166: 37 to 42 months | B166: 37 to 42 months | E166: 0 | F166: =IFERROR(VLOOKUP($A$166,'[7]Seasoning Distribution'!$A$1:$C$6,3,FALSE),0) -> 0 | I166: 0 | J166: 0 | M166: 0 | N166: 0 | Q166: 0 | R166: 0 | U166: 0 | V166: 0
A167: 43 to 48 months | B167: 43 to 48 months | E167: 0 | F167: =IFERROR(VLOOKUP($A$167,'[7]Seasoning Distribution'!$A$1:$C$6,3,FALSE),0) -> 0 | I167: 0 | J167: 0 | M167: 0 | N167: 0 | Q167: 0 | R167: 0 | U167: 0 | V167: 0
A168: 49 to 54 months | B168: 49 to 54 months | E168: 0 | F168: =IFERROR(VLOOKUP($A$168,'[7]Seasoning Distribution'!$A$1:$C$6,3,FALSE),0) -> 0 | I168: 0 | J168: 0 | M168: 0 | N168: 0 | Q168: 0 | R168: 0 | U168: 0 | V168: 0
A169: 55 to 60 months | B169: 55 to 60 months | E169: 0 | F169: =IFERROR(VLOOKUP($A$169,'[7]Seasoning Distribution'!$A$1:$C$6,3,FALSE),0) -> 0 | I169: 0 | J169: 0 | M169: 0 | N169: 0 | Q169: 0 | R169: 0 | U169: 0 | V169: 0
A170: 60+ months | B170: 61 to 72 months | E170: 0 | F170: =IFERROR(VLOOKUP($A$170,'[7]Seasoning Distribution'!$A$1:$C$6,3,FALSE),0) -> 0 | I170: 0 | J170: 0 | M170: 0 | N170: 0 | Q170: 0 | R170: 0 | U170: 0 | V170: 0
A171: 61 to 72 months | B171: Total | E171: =SUM(E160:E170) -> 1 | F171: =SUM(F160:F170) -> 283527624.3 | G171: =F157-F171 -> 0 | I171: 1 | J171: 303784588.4 | K171: 0 | M171: 1 | N171: 323051687.2 | O171: 0 | Q171: 1 | R171: 383251538.4 | S171: 0 | U171: 1 | V171: 410385213.2 | W171: 0
B173: Remaining Term Distribution
A174: 0 - 12 months | B174: 0-12 Months | E174: =F174/$V$180 -> 0.03086998391 | F174: =IFERROR(VLOOKUP($A$174,'[7]Remaining Term'!$A$1:$C$8,3,FALSE),0) -> 12668584.93 | I174: 0.0201802704 | J174: 8281684.57 | M174: 0.01333361679 | N174: 5471919.17 | Q174: 0.01144024623 | R174: 4694907.89 | U174: 0.01272945984 | V174: 5223982.09
A175: 13 - 24 months | B175: 13-24 Months | E175: =F175/$V$180 -> 0.09182658609 | F175: =IFERROR(VLOOKUP($A$175,'[7]Remaining Term'!$A$1:$C$8,3,FALSE),0) -> 37684273.11 | I175: 0.09726240702 | J175: 39915053.64 | M175: 0.09659855966 | N175: 39642620.5 | Q175: 0.08621010905 | R175: 35379353.98 | U175: 0.06598208939 | V175: 27078073.82
A176: 25 - 36 months | B176: 25-36 Months | E176: 0.3366323834 | F176: =IFERROR(VLOOKUP($A$176,'[7]Remaining Term'!$A$1:$C$8,3,FALSE),0) -> 138148952.4 | I176: 0.2900816396 | J176: 119045215.5 | M176: 0.2464760357 | N176: 101150120.5 | Q176: 0.1433337036 | R176: 58822032.51 | U176: 0.1429639985 | V176: 58670310.99
A177: 37 - 48 months | B177: 37-48 Months | E177: 0.2267202859 | F177: =IFERROR(VLOOKUP($A$177,'[7]Remaining Term'!$A$1:$C$8,3,FALSE),0) -> 93042652.85 | I177: 0.3201062123 | J177: 131366856.2 | M177: 0.4145503731 | N177: 170125343.3 | Q177: 0.5179504306 | R177: 212559197.9 | U177: 0.4790101368 | V177: 196578677.1
A178: 49 - 60 months | B178: 49-60 Months | E178: 0.004832437735 | F178: =IFERROR(VLOOKUP($A$178,'[7]Remaining Term'!$A$1:$C$8,3,FALSE),0) -> 1983160.99 | I178: 0.01261200039 | J178: 5175778.47 | M178: 0.01623275785 | N178: 6661683.79 | Q178: 0.1741086578 | R178: 71451618.63 | U178: 0.2935332471 | V178: 120461704.2
A179: 60+ Months | B179: 60+ Months | E179: 0 | F179: =IFERROR(VLOOKUP($A$179,'[7]Remaining Term'!$A$1:$C$8,3,FALSE),0) -> 0 | I179: 0 | J179: 0 | M179: 0 | N179: 0 | Q179: 0.0008392786069 | R179: 344427.53 | U179: 0.00578106843 | V179: 2372465
E180: =SUM(E174:E179) -> 0.690881677 | F180: =SUM(F174:F179) -> 283527624.3 | G180: =F171-F180 -> 0 | I180: 0.7402425297 | J180: 303784588.4 | K180: 0 | M180: 0.7871913432 | N180: 323051687.2 | O180: 0 | Q180: 0.9338824258 | R180: 383251538.4 | S180: 0 | U180: 1 | V180: 410385213.2 | W180: 0
B182: Origination LVR Distribution
A183: 01. 10% to 20% | B183: 10% to 20% | E183: =F183/F$199 -> 0 | F183: =IFERROR(VLOOKUP($A$183,'[7]LVR Band'!$A$1:$C$11,3,FALSE),0) -> 0 | I183: 2.89578548e-05 | J183: 8796.95 | M183: 2.723078179e-05 | N183: 8796.95 | Q183: 0.0001018099762 | R183: 39018.83 | U183: 9.507854754e-05 | V183: 39018.83
A184: 02. 21% to 30% | B184: 21% to 30% | E184: =F184/F$199 -> 0.004896409031 | F184: =IFERROR(VLOOKUP($A$184,'[7]LVR Band'!$A$1:$C$11,3,FALSE),0) -> 1388267.22 | I184: 0.004936716929 | J184: 1499698.52 | M184: 0.004966773565 | N184: 1604524.58 | Q184: 0.005542381536 | R184: 2124126.25 | U184: 0.005609169912 | V184: 2301920.39
A185: 03. 31% to 40% | B185: 31% to 40% | E185: 0.02804067847 | F185: =IFERROR(VLOOKUP($A$185,'[7]LVR Band'!$A$1:$C$11,3,FALSE),0) -> 7950306.95 | I185: 0.02854577432 | J185: 8671766.3 | M185: 0.0283994892 | N185: 9174502.9 | Q185: 0.03001022216 | R185: 11501463.81 | U185: 0.02969824101 | V185: 12187718.97
A186: 04. 41% to 50% | B186: 41% to 50% | E186: 0.08389364832 | F186: =IFERROR(VLOOKUP($A$186,'[7]LVR Band'!$A$1:$C$11,3,FALSE),0) -> 23786166.8 | I186: 0.08309832397 | J186: 25243990.14 | M186: 0.08081473713 | N186: 26107337.18 | Q186: 0.08472144306 | R186: 32469623.39 | U186: 0.08270400043 | V186: 33940498.85
A187: 05. 51% to 60% | B187: 51% to 60% | E187: 0.1359251298 | F187: =IFERROR(VLOOKUP($A$187,'[7]LVR Band'!$A$1:$C$11,3,FALSE),0) -> 38538529.13 | I187: 0.1329261762 | J187: 40380923.73 | M187: 0.1308115261 | N187: 42258884.2 | Q187: 0.1319739384 | R187: 50579214.92 | U187: 0.1316177566 | V187: 54013981.11
A188: 06. 61% to 70% | B188: 61% to 70% | E188: 0.1679385886 | F188: =IFERROR(VLOOKUP($A$188,'[7]LVR Band'!$A$1:$C$11,3,FALSE),0) -> 47615229.06 | I188: 0.1686665575 | J188: 51238300.74 | M188: 0.1685753387 | N188: 54458547.58 | Q188: 0.1667315808 | R188: 63900134.86 | U188: 0.1660836256 | V188: 68158264.11
A189: 07. 71% to 80% | B189: 71% to 80% | E189: 0.1813559229 | F189: =IFERROR(VLOOKUP($A$189,'[7]LVR Band'!$A$1:$C$11,3,FALSE),0) -> 51419413.96 | I189: 0.1788822623 | J189: 54341674.42 | M189: 0.1787399132 | N189: 57742230.52 | Q189: 0.1766905822 | R189: 67716937.45 | U189: 0.1785653592 | V189: 73280583.02
A190: 08. 81% to 90% | B190: 81% to 90% | E190: 0.2149955651 | F190: =IFERROR(VLOOKUP($A$190,'[7]LVR Band'!$A$1:$C$11,3,FALSE),0) -> 60957181.81 | I190: 0.2187053794 | J190: 66439323.64 | M190: 0.2207810089 | N190: 71323677.42 | Q190: 0.2137583377 | R190: 81923211.79 | U190: 0.2111981617 | V190: 86672602.61
A191: 09. 91% to 100% | B191: 91% to 100% | E191: 0.1829540578 | F191: =IFERROR(VLOOKUP($A$191,'[7]LVR Band'!$A$1:$C$11,3,FALSE),0) -> 51872529.36 | I191: 0.1842098515 | J191: 55960113.92 | M191: 0.1868839825 | N191: 60373185.86 | Q191: 0.1904697041 | R191: 72997807.12 | U191: 0.1944286069 | V191: 79790625.3
A192: > 100% | B192: > 100% | E192: 0 | F192: =IFERROR(VLOOKUP($A$192,'[7]LVR Band'!$A$1:$C$11,3,FALSE),0) -> 0 | I192: 0 | J192: 0 | M192: 0 | N192: 0 | Q192: 0 | R192: 0 | U192: 0 | V192: 0
E193: =SUM(E183:E192) -> 1 | F193: =SUM(F183:F192) -> 283527624.3 | G193: =F180-F193 -> 0 | I193: 1 | J193: 303784588.4 | K193: 0 | M193: 1 | N193: 323051687.2 | O193: 0 | Q193: 1 | R193: 383251538.4 | S193: 0 | U193: 1 | V193: 410385213.2 | W193: 0
B195: New v Used
A196: New | B196: New | E196: =F196/F$199 -> 0.953172323 | F196: =IFERROR(VLOOKUP($A$196,'[7]New v Used'!$A$1:$C$4,3,FALSE),0) -> 270250684.3 | I196: 0.9537525526 | J196: 289735326.6 | M196: 0.953705976 | N196: 308096324.6 | Q196: 0.9499134969 | R196: 364055809.1 | U196: 0.9490331847 | V196: 389469185.8
A197: USed | B197: Used | E197: =F197/F$199 -> 0.046827677 | F197: =IFERROR(VLOOKUP($A$197,'[7]New v Used'!$A$1:$C$4,3,FALSE),0) -> 13276940.01 | I197: 0.04624744736 | J197: 14049261.76 | M197: 0.04629402403 | N197: 14955362.57 | Q197: 0.05008650308 | R197: 19195729.36 | U197: 0.05096681532 | V197: 20916027.37
A198: Used
E199: =SUM(E196:E197) -> 1 | F199: =SUM(F196:F197) -> 283527624.3 | G199: =F193-F199 -> 0 | I199: 1 | J199: 303784588.4 | K199: -5.36441803e-07 | M199: 1 | N199: 323051687.2 | O199: 5.960464478e-07 | Q199: 1 | R199: 383251538.4 | S199: 0 | U199: 1 | V199: 410385213.2 | W199: 0
B201: Contract Type
A202: Finance Lease | B202: Finance Lease | E202: =F202/F$205 -> 0.01080161162 | F202: =IFERROR(VLOOKUP($A$202,'[7]Loan Type'!$A$1:$C$5,3,FALSE),0) -> 3062555.28 | I202: 0.01081355439 | J202: 3284991.17 | M202: 0.01172583135 | N202: 3788049.6 | Q202: 0.01531091266 | R202: 5867930.83 | U202: 0.01494647883 | V202: 6133813.9
A203: Goods Mortgage | B203: Goods Mortgage | E203: =F203/F$205 -> 0.983380706 | F203: =IFERROR(VLOOKUP($A$203,'[7]Loan Type'!$A$1:$C$5,3,FALSE),0) -> 278815595.4 | I203: 0.9837566979 | J203: 298850123.5 | M203: 0.982626014 | N203: 317438991.7 | Q203: 0.9799281257 | R203: 375558961.7 | U203: 0.9806073427 | V203: 402426753.4
A204: Hire Purchase | B204: Hire Purchase | E204: 0.005817682366 | F204: =IFERROR(VLOOKUP($A$204,'[7]Loan Type'!$A$1:$C$5,3,FALSE),0) -> 1649473.66 | I204: 0.005429747667 | J204: 1649473.66 | M204: 0.005648154652 | N204: 1824645.89 | Q204: 0.004760961685 | R204: 1824645.89 | U204: 0.004446178447 | V204: 1824645.89
E205: =SUM(E202:E204) -> 1 | F205: =SUM(F202:F204) -> 283527624.3 | G205: =F199-F205 -> 0 | I205: 1 | J205: 303784588.4 | K205: 0 | M205: 1 | N205: 323051687.2 | O205: 0 | Q205: 1 | R205: 381426892.5 | S205: 0 | U205: 1 | V205: 410385213.2 | W205: 0
B207: Contract by Source
A208: Non Hardship Refinance | B208: Non Hardship Refinance | E208: =F208/F$210 -> 1 | F208: =IFERROR(VLOOKUP($A208,'[7]Refinance vs Hardship'!$A$2:$C$3,3,FALSE),0) -> 283527624.3 | I208: 1 | J208: 303784588.4 | M208: 1 | N208: 323051687.2 | Q208: 1 | R208: 383251538.4 | U208: 1 | V208: 410385213.2
A209: Refinance - Hardship | B209: Hardship Refinance | E209: =F209/F$210 -> 0 | F209: =IFERROR(VLOOKUP($A209,'[7]Refinance vs Hardship'!$A$2:$C$3,3,FALSE),0) -> 0 | I209: 0 | J209: 0 | M209: 0 | N209: 0 | Q209: 0 | R209: 0 | U209: 0 | V209: 0
E210: =SUM(E208:E209) -> 1 | F210: =SUM(F208:F209) -> 283527624.3 | G210: =F205-F210 -> 0 | I210: 1 | J210: 303784588.4 | K210: 0 | M210: 1 | N210: 323051687.2 | O210: 0 | Q210: 1 | R210: 383251538.4 | S210: 0 | U210: 1 | V210: 410385213.2 | W210: 0
B212: Payment Frequency Distribution
A213: 6 Consecutive | B213: 6 Consecutive | E213: =F213/F$219 -> 0.01127494715 | F213: =IFERROR(VLOOKUP($A$213,'[7]Payment Frequency'!$A$1:$C$8,3,FALSE),0) -> 3196758.98 | I213: 0.01217162684 | J213: 3697552.65 | M213: 0.01190306605 | N213: 3845305.57 | Q213: 0.01171223434 | R213: 4488731.83 | U213: 0.01238816996 | V213: 5083921.77
A214: Annual | B214: Annual | E214: 0.7019528242 | F214: =IFERROR(VLOOKUP($A$214,'[7]Payment Frequency'!$A$1:$C$8,3,FALSE),0) -> 199023016.6 | I214: 0.6852196413 | J214: 208159166.7 | M214: 0.6740944482 | N214: 217767348.8 | Q214: 0.6934047486 | R214: 265748436.6 | U214: 0.6847932104 | V214: 281029007.7
A215: Monthly | B215: Monthly | E215: 0.2363714194 | F215: =IFERROR(VLOOKUP($A$215,'[7]Payment Frequency'!$A$1:$C$8,3,FALSE),0) -> 67017826.98 | I215: 0.2489914708 | J215: 75639771.46 | M215: 0.2587767174 | N215: 83598255.17 | Q215: 0.239776519 | R215: 91894719.77 | U215: 0.247603824 | V215: 101612948.1
A216: Quarterly | B216: Quarterly | E216: 0.01481205787 | F216: =IFERROR(VLOOKUP($A$216,'[7]Payment Frequency'!$A$1:$C$8,3,FALSE),0) -> 4199627.58 | I216: 0.01533863092 | J216: 4659639.68 | M216: 0.01552390883 | N216: 5015024.94 | Q216: 0.01397017565 | R216: 5354091.31 | U216: 0.01411436883 | V216: 5792328.26
... 21 more rows
